Cogmind - Beta 9.6 @@@ ROGUE MODE // 2020.08.22 @ 21:27:54 Player: Plexion Result: Self-destructed Performance ------------- Evolutions (2) 1000 Regions Visited (7) 1400 Robots Destroyed (126) 630 Value Destroyed (2660) 2660 Prototype IDs (3) 60 Alien Tech Used (0) 0 Bonus (124) 124 TOTAL SCORE: 5874 Bonus ------- High Alert Combat Kills 124 Cogmind --------- Core Integrity 218/550 Matter 29/300 Energy 90/100 System Corruption 0% Temperature Cool (0) Movement Hovering (236) Ox3 Location -8/Materials Parts ------- > --- POWER (1) -------- (None) > --- PROPULSION (3) --- Improved Hover Unit Improved Hover Unit > --- UTILITY (5) ------ Large Storage Unit Large Storage Unit Large Storage Unit Large Storage Unit > --- WEAPON (2) ------- (None) > --- INVENTORY (28) --- Light Treads Heat Sink Medium Storage Unit Humpback Core Shielding Light Armor Plating Light Armor Plating Hacking Suite Small Laser Advanced Beam Cannon Gauss Cannon Gauss Cannon Gauss Cannon EMP Blaster EMP Blaster Mini Grenade Launcher Mining Laser Plasma Cutter Heavy Hammer Katana Peak State ------------ > --- POWER ------------ Light Nuclear Core > --- PROPULSION ------- Combat Airjet Combat Airjet > --- UTILITY ---------- Large Storage Unit Large Storage Unit Large Storage Unit Large Storage Unit > --- WEAPON ----------- Heavy Assault Rifle Improved Assault Rifle > --- INVENTORY -------- Light Treads Light Treads Light Treads Light Treads Improved Hover Unit Improved Hover Unit Improved Hover Unit Heat Sink Medium Storage Unit Medium Storage Unit Hacking Suite Small Laser Advanced Beam Cannon Light Assault Rifle Improved Assault Rifle Improved Assault Rifle EMP Blaster EMP Blaster Mini Grenade Launcher Mini Grenade Launcher Mining Laser Plasma Cutter Heavy Hammer [Rating: 26] Favorites ----------- Power Light Ion Engine Engine Light Ion Engine Power Core Light Nuclear Core Propulsion Light Treads Treads Light Treads Hover Unit Combat Airjet Utility Large Storage Unit Device Heat Sink Storage Large Storage Unit Processor Advanced Targeting Computer Protection Reactive Plating Weapon Improved Assault Rifle Energy Gun Small Laser Energy Cannon Advanced Beam Cannon Ballistic Gun Improved Assault Rifle Ballistic Cannon Gauss Cannon Launcher Mini Grenade Launcher Build | -11 -10 -10 -9 -9 -9 -8 -8 ------- Run | Scr Mat Min Mat Min Exi Min Mat Slots Evolved 4 | . . . 2 . . . 2 Power . | . . . . . . . . Propulsion 1 | . . . . . . . 1 Utility 3 | . . . 2 . . . 1 Weapon . | . . . . . . . . Parts Attached 79 | 6 7 4 24 5 2 . 31 Power 6 | 1 . . 2 1 . . 2 Engine 3 | 1 . . 1 . . . 1 Core 3 | . . . 1 1 . . 1 Reactor . | . . . . . . . . Propulsion 18 | 2 1 . 4 . . . 11 Treads 13 | 2 1 . 2 . . . 8 Leg . | . . . . . . . . Wheel . | . . . . . . . . Hover 5 | . . . 2 . . . 3 Flight . | . . . . . . . . Utility 15 | 1 2 . 6 . 1 . 5 Device 2 | . . . 1 . . . 1 Storage 11 | 1 2 . 5 . 1 . 2 Processor 1 | . . . . . . . 1 Hackware . | . . . . . . . . Protection 1 | . . . . . . . 1 Artifact . | . . . . . . . . Weapon 40 | 2 4 4 12 4 1 . 13 Energy Gun 2 | 1 . . 1 . . . . Energy Cannon 2 | . 1 . 1 . . . . Ballistic Gun 18 | 1 3 1 6 2 1 . 4 Ballistic Cannon 3 | . . . . . . . 3 Launcher 15 | . . 3 4 2 . . 6 Special Weapon . | . . . . . . . . Impact Weapon . | . . . . . . . . Slashing Weapon . | . . . . . . . . Piercing Weapon . | . . . . . . . . Special Melee Weapon . | . . . . . . . . Unidentified Prototypes 2 | . 1 . 1 . . . . Parts Lost 26 | . 3 . 7 1 . . 15 Power 4 | . . . 2 . . . 2 Propulsion 13 | . 1 . 2 . . . 10 Utility 1 | . . . . . . . 1 Weapon 8 | . 2 . 3 1 . . 2 Highest Loss Streak 5 | . 1 . 3 1 . . 5 Average Slot Usage (%) 95 | . 92 100 94 96 94 88 95 Engine 6 | . 14 14 8 . . . 5 Core 3 | . . . 1 11 11 11 2 Treads 20 | . 26 28 2 22 22 22 24 Hover 3 | . . . 19 . . . 1 Device 1 | . . . 8 . . . . Storage 33 | . 22 28 32 44 39 33 35 Processor 1 | . . . . . . . 6 Ballistic Gun 17 | . 25 19 17 13 22 22 9 Ballistic Cannon 1 | . . . . . . . 4 Launcher 2 | . . 8 3 5 . . 2 Naked Turns . | . . . . . . . . Heaviest Build 123 | 10 40 40 75 75 123 123 123 Greatest Support 60 | 40 40 40 44 40 40 40 60 Greatest Overweight (x) 4 | 2 1 . 3 1 3 3 4 Average Overweight (x) . | . . . . 1 1 3 1 Largest Inventory Capacity 42 | 6 16 16 28 28 36 36 42 Average Capacity 23 | 5 12 16 21 28 31 36 28 Most Carried 28 | 2 13 15 26 25 27 27 28 Average Carried 19 | 1 7 13 17 23 25 27 26 Final Capacity 36 | 6 16 16 28 28 36 36 28 Final Carried 27 | 2 13 15 24 25 27 27 21 Class Distribution -------------------- 69% | Hauler-Mutant 29% | Mutant Dominant Class ---------------- Mutant | -10/Materials Mutant | -10/Mines Hauler-Mutant | -9/Materials Hauler-Mutant | -9/Mines Hauler-Mutant | -9/Exiles Hauler-Mutant | -8/Mines Hauler-Mutant | -8/Materials Resources | -11 -10 -10 -9 -9 -9 -8 -8 ----------- Run | Scr Mat Min Mat Min Exi Min Mat Matter Collected 2216 | 215 285 233 597 99 . . 787 Remotely . | . . . . . . . . Salvage Created 2899 | . 517 252 945 168 . . 1017 Parts 202 | . 36 11 56 18 . . 81 Haulers Intercepted 7 | . 2 . 5 . . . . Recyclers Shooed 3 | . . 1 2 . . . . Parts Field Recycled . | . . . . . . . . Retrieved Matter . | . . . . . . . . Parts Self-Destructed . | . . . . . . . . Prevented . | . . . . . . . . Kills | -11 -10 -10 -9 -9 -9 -8 -8 ------- Run | Scr Mat Min Mat Min Exi Min Mat Combat Hostiles Destroyed 104 | . 14 21 17 12 . . 40 Melee 1 | . . . . . . . 1 Guns 35 | . 14 1 11 3 . . 6 Cannons 1 | . . . . . . . 1 AOE 67 | . . 20 6 9 . . 32 Classes Destroyed 13 | . 4 3 3 1 . . 2 Worker 2 | . . . . . . . 2 Builder 3 | . . . . . . . 3 Tunneler 2 | . . . 1 . . . 1 Hauler 7 | . 2 . 5 . . . . Recycler 4 | . . 2 1 . . . 1 Operator 3 | . 1 . 1 . . . 1 Watcher 1 | . . . 1 . . . . Swarmer 42 | . 6 6 6 9 . . 15 Grunt 34 | . 8 . 8 2 . . 16 Duelist 3 | . . . . 1 . . 2 Sentry 10 | . . . 3 . . . 7 Demolisher 1 | . . 1 . . . . . Assembled 14 | . . 14 . . . . . Best Kill Streak 14 | . 5 14 3 4 . . 11 Combat Bots Only 13 | . 5 13 3 4 . . 6 Max Kills in Single Turn 4 | . 1 3 1 2 . . 4 Gunslinging . | . . . . . . . . Exploded 4 | . . 3 1 2 . . 4 Melee 1 | . . . . . . . 1 Uniques/NPCs Destroyed . | . . . . . . . . Combat | -11 -10 -10 -9 -9 -9 -8 -8 -------- Run | Scr Mat Min Mat Min Exi Min Mat Damage Taken 4648 | . 532 357 992 206 . 31 2530 Core 695 | . 59 29 206 69 . . 332 Absorbed by Shields . | . . . . . . . . Core Remaining (%) 65 | 100 . 64 . . . 31 . Volleys Fired 260 | . 49 36 78 15 . . 82 Largest 2 | . 2 2 2 2 . . 2 Hottest 108 | . 60 40 108 46 . . 96 Shots Fired 425 | . 97 40 140 23 . . 125 Gun 319 | . 97 17 124 16 . . 65 Cannon 29 | . . . 7 . . . 22 Launcher 77 | . . 23 9 7 . . 38 Special . | . . . . . . . . Kinetic 323 | . 87 17 116 16 . . 87 Thermal 25 | . 10 . 15 . . . . Explosive 66 | . . 16 5 7 . . 38 Electromagnetic 11 | . . 7 4 . . . . Robot Hit Streak 22 | . 16 3 18 19 . . 22 Robot Miss Streak 4 | . 3 3 4 1 . . 3 Penetration Max . | . . . . . . . . Secondary Targets 2 | . 1 . 1 . . . . Max Gunslinging Chain 1 | . 1 . 1 . . . . Shots Hit Robots 288 | . 73 11 101 16 . . 87 Core Hits 219 | . 29 41 43 16 . . 90 Critical Hits 3 | . . . 1 . . . 2 Critical Kills 1 | . . . . . . . 1 Critical Parts Destroyed 2 | . . . 1 . . . 1 Melee Attacks . | . . . . . . . . Impact . | . . . . . . . . Slashing . | . . . . . . . . Piercing . | . . . . . . . . Sneak Attacks . | . . . . . . . . Combat Hostiles . | . . . . . . . . Follow-up Attacks . | . . . . . . . . Damage Inflicted 9283 | . 768 1488 1683 912 . . 4432 Guns 3179 | . 768 106 1289 203 . . 813 Cannons 438 | . . . 83 . . . 355 Explosions 5619 | . . 1377 305 709 . . 3228 Melee . | . . . . . . . . Ramming 47 | . . 5 6 . . . 36 Kinetic 3380 | . 691 106 1212 203 . . 1168 Thermal 276 | . 77 39 160 . . . . Explosive 5395 | . . 1217 241 709 . . 3228 Electromagnetic 185 | . . 121 64 . . . . Impact . | . . . . . . . . Slashing . | . . . . . . . . Piercing . | . . . . . . . . Highest Corruption 4 | . . . 4 4 4 4 . Average Corruption 3 | . . . 3 4 4 4 . Corruption Purged . | . . . . . . . . Effects 31 | . . . 2 8 20 1 . Message Errors 8 | . . . . 2 6 . . Matter Fused 6 | . . . 1 3 1 1 . Heat Flow Errors 4 | . . . . 1 3 . . Energy Discharges 6 | . . . 1 . 5 . . Parts Rejected 1 | . . . . 1 . . . Data Loss (minor) 6 | . . . . 1 5 . . Overload Shots . | . . . . . . . . Overflow Damage 205 | . . 20 . 11 . . 174 Projectiles 31 | . . . . . . . 31 Explosions 174 | . . 20 . 11 . . 143 Melee . | . . . . . . . . Knockbacks 4 | . . . . . . . 4 Impact . | . . . . . . . . Kinetic 3 | . . . . . . . 3 Secondary 1 | . . . . . . . 1 Self-Inflicted Damage 380 | . . 43 30 54 . . 253 Shots 23 | . . 5 2 3 . . 13 Rammed 5 | . . 1 1 . . . 3 Targets Rammed 5 | . . 1 1 . . . 3 Kicked . | . . . . . . . . Crushed . | . . . . . . . . Highest Temperature 181 | . 27 . 45 129 171 . 181 Average Temperature 42 | . 9 . 14 68 79 . 61 Received Heat Transfer 1656 | . 225 . 372 42 . 18 999 Siege Activations . | . . . . . . . . Robots Corrupted . | . . . . . . . . Combat Hostiles . | . . . . . . . . Parts Fried . | . . . . . . . . Impact Corruptions . | . . . . . . . . Robots Melted . | . . . . . . . . Combat Hostiles . | . . . . . . . . Parts Melted . | . . . . . . . . Heat Transferred 548 | . 175 50 323 . . . . Parts Sabotaged . | . . . . . . . . Parts Stolen . | . . . . . . . . Parts Stripped . | . . . . . . . . Power Chain Reactions . | . . . . . . . . Missiles Intercepted . | . . . . . . . . Alert | -11 -10 -10 -9 -9 -9 -8 -8 ------- Run | Scr Mat Min Mat Min Exi Min Mat Peak Influence 714 | . 331 155 301 391 . . 714 Average Influence 185 | . 140 35 147 251 . . 291 Maximum Alert Level 3 | . 1 . 1 1 . . 3 Low Security (%) 57 | 100 78 100 76 7 . 100 25 Level 1 36 | . 21 . 23 92 . . 56 Level 2 5 | . . . . . . . 16 Level 3 . | . . . . . . . 1 Level 4 . | . . . . . . . . Level 5 . | . . . . . . . . High Security . | . . . . . . . . Max Security . | . . . . . . . . Squads Dispatched 12 | . 3 . 3 . . . 6 Investigation 2 | . . . 1 . . . 1 Extermination . | . . . . . . . . Reinforcement 10 | . 3 . 2 . . . 5 Assault . | . . . . . . . . Garrison . | . . . . . . . . Intercept . | . . . . . . . . Construction Impeded 1 | . . . . . . . 1 Haulers Reinforced . | . . . . . . . . Stealth | -11 -10 -10 -9 -9 -9 -8 -8 --------- Run | Scr Mat Min Mat Min Exi Min Mat Distress Signals 14 | . 3 . 3 . . . 8 Communications Jammed . | . . . . . . . . Distress Signals . | . . . . . . . . Times Spotted 176 | . 30 27 39 14 . 3 63 Peak Tracking Total 9 | . 8 8 5 4 . 3 9 Tactical Retreats 19 | . 4 . 2 2 . . 11 Traps | -11 -10 -10 -9 -9 -9 -8 -8 ------- Run | Scr Mat Min Mat Min Exi Min Mat Traps Triggered 2 | . . . 2 . . . . Indirectly . | . . . . . . . . Trap Hack Attempts . | . . . . . . . . Triggered . | . . . . . . . . Disarmed . | . . . . . . . . Reprogrammed . | . . . . . . . . Reused . | . . . . . . . . Traps Extracted . | . . . . . . . . Installed . | . . . . . . . . Triggered . | . . . . . . . . Machines | -11 -10 -10 -9 -9 -9 -8 -8 ---------- Run | Scr Mat Min Mat Min Exi Min Mat Machines Disabled 6 | . . 2 1 1 . . 2 Max in Single Turn 1 | . . 1 1 1 . . 1 Machines Sabotaged . | . . . . . . . . Garrisons Compromised . | . . . . . . . . Overloaded Fab Kills . | . . . . . . . . Fab Network Shutdowns . | . . . . . . . . Hacking | -11 -10 -10 -9 -9 -9 -8 -8 --------- Run | Scr Mat Min Mat Min Exi Min Mat Machines Accessed 10 | . 2 . 3 . . . 5 Terminals 8 | . 2 . 2 . . . 4 Fabricators . | . . . . . . . . Repair Stations 1 | . . . 1 . . . . Recycling Units . | . . . . . . . . Scanalyzers 1 | . . . . . . . 1 Garrison Access . | . . . . . . . . Total Hacks 32 | . 6 . 11 . . . 15 Successful 11 | . 3 . 4 . . . 4 Failed 21 | . 3 . 7 . . . 11 Catastrophic 3 | . 2 . 1 . . . . Database Lockouts . | . . . . . . . . Manual 24 | . 6 . 9 . . . 9 Terminals 26 | . 6 . 9 . . . 11 Fabricators . | . . . . . . . . Repair Stations 2 | . . . 2 . . . . Recycling Units . | . . . . . . . . Scanalyzers 4 | . . . . . . . 4 Garrison Access . | . . . . . . . . Terminal Hacks 8 | . 3 . 3 . . . 2 Branch Access Points 1 | . 1 . . . . . . Unreport Threat 1 | . . . 1 . . . . Recall Reinforcements 1 | . . . 1 . . . . Zone Layout 5 | . 2 . 1 . . . 2 Fabricator Hacks . | . . . . . . . . Repair Station Hacks 1 | . . . 1 . . . . Scan Component 1 | . . . 1 . . . . Recycling Unit Hacks . | . . . . . . . . Scanalyzer 2 | . . . . . . . 2 Insert Component 2 | . . . . . . . 2 Garrison Access Hacks . | . . . . . . . . Unauthorized Hacks . | . . . . . . . . Terminals . | . . . . . . . . Fabricators . | . . . . . . . . Repair Stations . | . . . . . . . . Recycling Units . | . . . . . . . . Scanalyzers . | . . . . . . . . Garrison Access . | . . . . . . . . Data Cores Recovered . | . . . . . . . . Used . | . . . . . . . . Hacking Detections 10 | . 2 . 3 . . . 5 Full Trace Events 2 | . . . 1 . . . 1 Feedback Events . | . . . . . . . . Feedback Blocked . | . . . . . . . . Robot Schematics Acquired . | . . . . . . . . Robots Built . | . . . . . . . . Matter . | . . . . . . . . Time . | . . . . . . . . Total Robot Build Rating . | . . . . . . . . Part Schematics Acquired . | . . . . . . . . Parts Built . | . . . . . . . . Matter . | . . . . . . . . Time . | . . . . . . . . Total Part Build Rating . | . . . . . . . . Parts Repaired . | . . . . . . . . Time . | . . . . . . . . Parts Recycled . | . . . . . . . . Recycled Matter . | . . . . . . . . Retrieved Matter . | . . . . . . . . Retrieved Components . | . . . . . . . . Parts Scanalyzed 1 | . . . . . . . 1 Part Schematics Acquired . | . . . . . . . . Parts Damaged . | . . . . . . . . Bothacking | -11 -10 -10 -9 -9 -9 -8 -8 ------------ Run | Scr Mat Min Mat Min Exi Min Mat Used RIF Installer . | . . . . . . . . Robots Hacked . | . . . . . . . . Non-combat . | . . . . . . . . Combat . | . . . . . . . . Robot Hacks Applied . | . . . . . . . . Relay Couplers Released . | . . . . . . . . Robots Rewired . | . . . . . . . . Allies Hacked . | . . . . . . . . Hacks Repelled . | . . . . . . . . Allies | -11 -10 -10 -9 -9 -9 -8 -8 -------- Run | Scr Mat Min Mat Min Exi Min Mat Total Allies . | . . . . . . . . Largest Group . | . . . . . . . . Highest-Rated Group . | . . . . . . . . Highest-Rated Ally . | . . . . . . . . Total Orders . | . . . . . . . . Ally Attacks . | . . . . . . . . Total Damage . | . . . . . . . . Kills . | . . . . . . . . Allies Corrupted . | . . . . . . . . Allies Melted . | . . . . . . . . Intel | -11 -10 -10 -9 -9 -9 -8 -8 ------- Run | Scr Mat Min Mat Min Exi Min Mat Robot Analysis Total . | . . . . . . . . Derelict Logs Recovered 2 | . . . . 2 . . . Drone Launches . | . . . . . . . . Drone Recoveries . | . . . . . . . . Exploration | -11 -10 -10 -9 -9 -9 -8 -8 ------------- Run | Scr Mat Min Mat Min Exi Min Mat Turns Passed 5820 | 67 1015 551 1090 395 970 104 1628 Spaces Moved 2835 | 42 513 292 517 194 491 48 738 Core 14 | 14 . . . . . . . Treads 2328 | 28 513 292 59 194 491 48 703 Legs . | . . . . . . . . Wheels . | . . . . . . . . Hover 493 | . . . 458 . . . 35 Flight . | . . . . . . . . Fastest Speed 50 | 50 160 160 76 180 180 220 160 Average Speed 171 | 128 161 160 147 180 194 220 181 Slowest Speed 240 | 160 180 160 220 180 220 220 240 Overloaded Moves . | . . . . . . . . Propulsion Burnouts . | . . . . . . . . Robots Hopped . | . . . . . . . . Cave-ins Triggered . | . . . . . . . . Exploration Rate (%) 53 | 4 87 84 46 40 87 17 64 Regions Visited 7 Branch Regions 4 Pre-discovered Areas 2 | . . 1 . 1 . . . Known Exits Taken 1 | . 1 . . . . . . Unknown Exits Taken 6 | 1 . 1 1 1 1 1 . Scrap Searched 1 | . . 1 . . . . . Spaces Dug 79 | . . . . 35 . . 44 Terrain Destroyed 443 | . . 127 31 52 . . 233 Melee . | . . . . . . . . Projectile 11 | . . . . . . . 11 AOE 432 | . . 127 31 52 . . 222 Actions | -11 -10 -10 -9 -9 -9 -8 -8 --------- Run | Scr Mat Min Mat Min Exi Min Mat Total 3371 | 52 609 336 708 215 505 47 899 Wait 114 | 3 25 2 64 . . . 20 Move 2828 | 41 512 291 516 193 490 47 738 Hop . | . . . . . . . . Pick Up 59 | 2 13 2 16 2 11 . 13 Fast Attach 23 | 6 3 . 6 1 1 . 6 Attach 24 | . 3 . 7 1 . . 13 Detach 9 | . 2 . 4 . . . 3 Swap 32 | . 1 4 11 3 1 . 12 Drop 17 | . 1 . 5 . 2 . 9 Fire 260 | . 49 36 78 15 . . 82 Melee . | . . . . . . . . Ram 1 | . . . 1 . . . . Kick . | . . . . . . . . Crush 4 | . . 1 . . . . 3 Escape Stasis . | . . . . . . . . Rewire . | . . . . . . . . Trap . | . . . . . . . . Miscellaneous . | . . . . . . . . Route ------- -11/Scrapyard -10/Materials (discovered 4 exits: *Mat x3 / *Min) -10/Mines (discovered 2 exits: *Mat x2) -9/Materials (discovered 3 exits: *Mat / [*Min] / [*Sto]) -9/Mines -9/Exiles -8/Mines -8/Materials (discovered 1 exit: [*Fac]) History --------- Turn | Location | Event 37 | -11/Scrapyard | Discovered new exit (range 15) 68 | -11/Scrapyard | Entered Materials 138 | -10/Materials | Identified exit to Mines 304 | -10/Materials | Build established: Mutant 527 | -10/Materials | Discovered new exit (range 13) 684 | -10/Materials | Discovered new exit (range 10) 946 | -10/Materials | Discovered new exit (range 4) 1083 | -10/Materials | Entered Mines 1098 | -10/Mines | Discovered new exit (range 10) 1104 | -10/Mines | Learned location of Storage (-9) 1313 | -10/Mines | Assembled infested the area 1318 | -10/Mines | Assisted by a Guerilla fighting off Assembled 1428 | -10/Mines | Destroyed 13 combat bots 1615 | -10/Mines | Discovered new exit (range 11) 1634 | -10/Mines | Entered Materials 1634 | -9/Materials | Evolved 2 slots: Utility x2 1778 | -9/Materials | Lost 3 parts (1p1n1w) 1818 | -9/Materials | Discovered new exit (range 12) 1946 | -9/Materials | Discovered new exit (range 13) 2068 | -9/Materials | Discovered new exit (range 15) 2101 | -9/Materials | Build established: Hauler-Mutant 2565 | -9/Materials | Core integrity fell below 50% 2724 | -9/Materials | Entered Mines 2851 | -9/Mines | Learned location of Zion (-7) 2918 | -9/Mines | Learned Materials trap positions 2966 | -9/Mines | Deemed a non-threat by the Exiles lab entrance 3110 | -9/Mines | Discovered new exit (range 5) 3119 | -9/Mines | Entered Exiles 3119 | -9/Exiles | Found Exiles lab abandoned 4063 | -9/Exiles | Discovered new exit (range 14) 4089 | -9/Exiles | Entered Mines 4144 | -8/Mines | Discovered new exit (range 8) 4193 | -8/Mines | Entered Materials 4193 | -8/Materials | Evolved 2 slots: Propulsion x1, Utility x1 4194 | -8/Materials | Loaded intel: 24 trap records 4822 | -8/Materials | Discovered new exit (range 11) 5668 | -8/Materials | Core integrity fell below 50% 5690 | -8/Materials | Lost 5 parts (1p4n) 5777 | -8/Materials | Lost 3 parts (2n1u) 5821 | -8/Materials | Self-destructed Last Messages --------------- 05736_ U-05 Engineer lays Concrete. 05738_ The unstable cave ceiling collapses. 05739_ U-05 Engineer lays Concrete. 05741_ Lgt. Treads destroyed. 05742_ W-25 Informer sends out distress signal. 05743_ K-01 Serf collects debris. 05746_ Lgt. Treads destroyed. 05746_ Reactive Plating destroyed. 05747_ Y-45 Defender destroyed. 05748_ K-01 Serf collects debris. 05750_ U-05 Engineer lays Concrete. 05768_ Acquired 37 matter. 05772_ G-47 Trooper destroyed. 05775_ Acquired Lgt. Treads. 05777_ The unstable cave ceiling collapses. 05807_ O-16 Technician: "IFF HANDSHAKE FAILED. SECURING TERMINAL." 05810_ ALERT: Hostiles spotted, dispatching reinforcements to Terminal M006. 05815_ Airjet destroyed. 05815_ Mni. Grenade Launcher destroyed. Map ----- +----------------------------------------------------+ | ???????????????????????????????????????? | | ???????????????????????????????????????? | | ???????????????????????????????????????? | | ???????????????????????????????????????? | | ???????????????????????????????????????? | | ???????????????????????????????????????? | | ???????????????????????????????????????? | | ???????????????????????????????????????? | | ???????????????????????????????????????? | | ???????????????????????????????????????? | | ???????????????????????????????????????? | | ????????????????????????^^^????????????? | | ???????????????????????????????????????? | | ???????????????????????????????????????? | | ????????#??????????????????????????????? | | ???????? ??????????????????????????????? | | ???????# ??????????????????????????????? | | ???????# #?????????????????#???????????? | | ??###### #??????????????? #???????????? | | ? # #????#+######## #???????????? | | ? """ # #????# #???????????? | | # """ # #????# #???????????? | | # """ # ###### ###?????????? | | # """ # ???????? | | # """ # #???????????? | | # + @ #???????????? | | # """ # #######+##???????????? | | # """ ### #????????????????????? | | # """ #?# ####g###????????????????????? | | # """ !#?# #?? g??????????????????????? | | # """ #?# #??"""????????????????^?????? | | # #?# #? "G ?????????????????^????? | | ####+###?# #? """??????????????????????? | | ???# #???# #? ??????????????^?^?????? | | ???# #???# ## ??????????????????????? | | #### ##### #????+#??#+#??#####???#####?? | | # # #???#????# #??# ?? #?? | | # ## #???# ???# #??#| """ #?? | | # ### #???# ???# ##?# """"" #?? | | # [! + #???# ???# ??+ """"" #?? | | [ # #??## #### #??# """"" #?? | | # #??#! # #### """ #?? | | # + #??# # # ????? | | # #??# # ####+####???? | | # !! ###### ##= ####? | | # !! [ ## ## | | # ! =% [ * ! | | # ! | | # = | | # """ ##### | +----------------------------------------------------+ Best States ------------- Heat Dissipation 41 Energy Generation 14 Energy Capacity 160 Matter Stores 300 Matter Capacity 300 Sight Range 16 Terrain Scan Density 10 Armor Coverage 150 Resistance: KI 20 Evasion (%) 50 Targeting Accuracy 8 Recoil Reduction 3 Item Schematics ----------------- None Robot Schematics ------------------ None Fabricated ------------ Nothing Alien Tech Used ----------------- None Achievements -------------- None Challenges ------------ None Game ------ Seed SupercompositeFlakDrive Manual? 0 Play Time 00:35:37 Cumulative 110.3 hours Start 2020.08.22 @ 20:54:23 End 2020.08.22 @ 21:27:54 Sessions 1 Manual Loads 0 Difficulty Rogue Special Mode None Game No. 124 Rogue 37 Adventurer 87 Explorer 0 Win Type - Total 4 Types 3/0/0/1/0/0/0 Lore% 53 Gallery% 64 Achievement% 55 Wizard Run 0 Options --------- ASCII 0 Keyboard 1 Movement Numpad Keybinds 0 Fullscreen 1 Font 18/Smallcaps Map View 76x50 Tactical HUD 1 Map Filters NONE Filters NONE Steam 1 RUN: 7e57521d-980b-407c-a7d1-8fe466e21ba2